fUST/lending_fUST_20240607
["ID","MTS","AMOUNT","RATE_DAILY","PERIOD"]
[328688256,1717707047404,-500.0,0.00024657,2]
[328688257,1717707047413,-500.0,0.00024657,2]
[328688258,1717707047422,-500.0,0.00024657,2]
[328688259,1717707047433,-500.0,0.00024657,2]
[328688260,1717707047442,-500.0,0.00024657,2]
[328688261,1717707047453,-500.0,0.00024657,2]
[328688262,1717707047462,-500.0,0.00024657,2]
[328688263,1717707047472,-500.0,0.00024657,2]
[328688264,1717707047481,-500.0,0.00024657,2]
[328688265,1717707047491,-500.0,0.00024657,2]
[328688266,1717707047500,-500.0,0.00024657,2]
[328688267,1717707047510,-530.65735761,0.00024657,2]
[328688268,1717707047520,-550.23780937,0.00024657,2]
[328688269,1717707047529,-500.0,0.00024657,2]
[328688270,1717707047538,-500.0,0.00024657,2]
[328688271,1717707047548,-500.0,0.00024657,2]
[328688272,1717707047558,-500.0,0.00024657,2]
[328688273,1717707047567,-500.0,0.00024657,2]
[328688274,1717707047577,-500.0,0.00024657,2]
[328688275,1717707047586,-500.0,0.00024657,2]
[328688276,1717707047595,-500.0,0.00024657,2]
[328688277,1717707047604,-500.0,0.00024657,2]
[328688278,1717707047615,-411.73342454,0.00024657,2]
[328688279,1717707047627,-500.0,0.00024657,2]
[328688280,1717707047636,-500.0,0.00024657,2]
[328688281,1717707047646,-500.0,0.00024657,2]
[328688282,1717707047655,-500.0,0.00024657,2]
[328688283,1717707047664,-500.0,0.00024657,2]
[328688284,1717707047674,-500.0,0.00024657,2]
[328688285,1717707047684,-500.0,0.00024657,2]
[328688286,1717707047694,-500.0,0.00024657,2]
[328688287,1717707047703,-500.0,0.00024657,2]
[328688288,1717707047712,-500.0,0.00024657,2]
[328688289,1717707047722,-500.0,0.00024657,2]
[328688290,1717707047733,-563.9,0.00024657,2]
[328688291,1717707047743,-500.0,0.00024657,2]
[328688292,1717707047752,-500.0,0.00024657,2]
[328688293,1717707047762,-500.0,0.00024657,2]
[328688294,1717707047772,-500.0,0.00024657,2]
[328688295,1717707047782,-500.0,0.00024657,2]
[328688296,1717707047791,-500.0,0.00024657,2]
[328688297,1717707047800,-691.76,0.00024657,2]
[328688298,1717707047809,-595.16700674,0.00024657,2]
[328688299,1717707047818,-500.0,0.00024657,2]
[328688300,1717707047827,-500.0,0.00024657,2]
[328688301,1717707047838,-500.0,0.00024657,2]
[328688302,1717707047847,-500.0,0.00024657,2]
[328688303,1717707047859,-262.21290687,0.00024657,2]
[328688304,1717707047869,-274.78572379,0.00024657,2]
[328688305,1717707047879,-500.0,0.00024657,2]
[328688306,1717707047888,-500.0,0.00024657,2]
[328688307,1717707047897,-500.0,0.00024657,2]
[328688308,1717707047906,-500.0,0.00024657,2]
[328688309,1717707047915,-500.0,0.00024657,2]
[328688310,1717707047924,-1926.82,0.00024657,2]
[328688311,1717707047934,-500.0,0.00024657,2]
[328688312,1717707047943,-500.0,0.00024657,2]
[328688313,1717707047952,-584.31,0.00024657,2]
[328688314,1717707047961,-154.1929966,0.00024657,2]
[328688315,1717707047971,-500.0,0.00024657,2]
[328688316,1717707047982,-500.0,0.00024657,2]
[328688317,1717707047992,-500.0,0.00024657,2]
[328688318,1717707048001,-500.0,0.00024657,2]
[328688319,1717707048011,-870.7,0.00024657,2]
[328688320,1717707048025,-500.0,0.00024657,2]
[328688321,1717707048036,-500.0,0.00024657,2]
[328688322,1717707048045,-500.0,0.00024657,2]
[328688323,1717707048055,-500.0,0.00024657,2]
[328688324,1717707048066,-500.0,0.00024657,2]
[328688325,1717707048076,-500.0,0.00024657,2]
[328688326,1717707048086,-500.0,0.00024657,2]
[328688327,1717707048097,-708.49,0.00024657,2]
[328688328,1717707048107,-500.0,0.00024657,2]
[328688329,1717707048116,-500.0,0.00024657,2]
[328688330,1717707048126,-500.0,0.00024657,2]
[328688331,1717707048135,-500.0,0.00024657,2]
[328688332,1717707048145,-502.32324448,0.00024657,2]
[328688333,1717707048155,-500.0,0.00024657,2]
[328688334,1717707048164,-764.65,0.00024657,2]
[328688335,1717707048173,-500.0,0.00024657,2]
[328688336,1717707048183,-500.0,0.00024657,2]
[328688337,1717707048193,-500.0,0.00024657,2]
[328688338,1717707048203,-1094.92,0.00024657,2]
[328688339,1717707048212,-500.0,0.00024657,2]
[328688340,1717707048223,-490.41813866,0.00024657,2]
[328688341,1717707048232,-500.0,0.00024657,2]
[328688342,1717707048243,-500.0,0.00024657,2]
[328688343,1717707048253,-500.0,0.00024657,2]
[328688344,1717707048263,-500.0,0.00024657,2]
[328688345,1717707048274,-500.0,0.00024657,2]
[328688346,1717707048284,-641.96,0.00024657,2]
[328688347,1717707048294,-500.0,0.00024657,2]
[328688348,1717707048303,-500.0,0.00024657,2]
[328688349,1717707048314,-500.0,0.00024657,2]
[328688350,1717707048323,-2142.83,0.00024657,2]
[328688351,1717707048333,-500.0,0.00024657,2]
[328688352,1717707048343,-500.0,0.00024657,2]
[328688353,1717707048352,-647.59209071,0.00024657,2]
[328688354,1717707048361,-500.0,0.00024657,2]
[328688355,1717707048370,-500.0,0.00024657,2]
[328688356,1717707048380,-1084.85,0.00024657,2]
[328688357,1717707048389,-500.0,0.00024657,2]
[328688358,1717707048398,-2659.99,0.00024657,2]
[328688359,1717707048408,-502.68987136,0.00024657,2]
[328688360,1717707048417,-500.0,0.00024657,2]
[328688361,1717707048426,-502.73914958,0.00024657,2]
[328688362,1717707048435,-500.0,0.00024657,2]
[328688363,1717707048445,-500.0,0.00024657,2]
[328688364,1717707048455,-598.37,0.00024657,2]
[328688365,1717707048466,-500.0,0.00024657,2]
[328688366,1717707048475,-500.0,0.00024657,2]
[328688367,1717707048486,-500.0,0.00024657,2]
[328688368,1717707048496,-2706.73,0.00024657,2]
[328688369,1717707048506,-500.0,0.00024657,2]
[328688370,1717707048515,-500.0,0.00024657,2]
[328688371,1717707048526,-500.0,0.00024657,2]
[328688372,1717707048535,-501.9938947,0.00024657,2]
[328688373,1717707048545,-500.0,0.00024657,2]
[328688374,1717707048556,-500.0,0.00024657,2]
[328688375,1717707048568,-500.0,0.00024657,2]
[328688376,1717707048577,-2631.9,0.00024657,2]
[328688377,1717707048587,-502.85401392,0.00024657,2]
[328688378,1717707048598,-502.13775332,0.00024657,2]
[328688379,1717707048609,-500.0,0.00024657,2]
[328688380,1717707048619,-500.0,0.00024657,2]
[328688381,1717707048628,-500.0,0.00024657,2]
[328688382,1717707048638,-500.0,0.00024657,2]
[328688383,1717707048648,-157.37571811,0.00024657,2]
[328688384,1717707048659,-584.0,0.00024657,2]
[328688385,1717707048671,-1075.6,0.00024657,2]
[328688386,1717707048682,-502.70824323,0.00024657,2]
[328688387,1717707048694,-503.63105332,0.00024657,2]
[328688388,1717707048706,-500.0,0.00024657,2]
[328688389,1717707048715,-3211.23,0.00024657,2]
[328688390,1717707048725,-500.30752592,0.00024657,2]
[328688391,1717707048735,-500.0,0.00024657,2]
[328688392,1717707048745,-500.0,0.00024657,2]
[328688393,1717707048755,-501.71237141,0.00024657,2]
[328688394,1717707048765,-500.0,0.00024657,2]
[328688395,1717707048774,-500.0,0.00024657,2]
[328688396,1717707048783,-500.0,0.00024657,2]
[328688397,1717707048793,-500.0,0.00024657,2]
[328688398,1717707048803,-500.0,0.00024657,2]
[328688399,1717707048813,-500.0,0.00024657,2]
[328688400,1717707048824,-500.0,0.00024657,2]
[328688401,1717707048835,-500.0,0.00024657,2]
[328688402,1717707048845,-500.0,0.00024657,2]
[328688403,1717707048855,-500.0,0.00024657,2]
[328688404,1717707048865,-500.0,0.00024657,2]
[328688405,1717707048874,-500.0,0.00024657,2]
[328688406,1717707048886,-500.0,0.00024657,2]
[328688407,1717707048896,-500.0,0.00024657,2]
[328688408,1717707048905,-500.0,0.00024657,2]
[328688409,1717707048916,-500.0,0.00024657,2]
[328688410,1717707048925,-500.0,0.00024657,2]
[328688411,1717707048935,-500.0,0.00024657,2]
[328688412,1717707048945,-450.47816238,0.00024657,2]
[328688413,1717707048954,-500.0,0.00024657,2]
[328688414,1717707048963,-500.0,0.00024657,2]
[328688415,1717707048973,-500.0,0.00024657,2]
[328688416,1717707048983,-500.0,0.00024657,2]
[328688417,1717707048992,-500.0,0.00024657,2]
[328688418,1717707049001,-500.0,0.00024657,2]
[328688419,1717707049010,-500.0,0.00024657,2]
[328688420,1717707049023,-500.0,0.00024657,2]
[328688421,1717707049032,-500.0,0.00024657,2]
[328688422,1717707049042,-500.0,0.00024657,2]
[328688423,1717707049052,-500.0,0.00024657,2]
[328688424,1717707049062,-500.0,0.00024657,2]
[328688425,1717707049072,-153.0,0.00024877,2]
[328688426,1717707049082,-321.809964,0.00024877,2]
[328688427,1717707049093,-153.0,0.00024877,2]
[328688428,1717707049103,-204.6475642,0.00024877,2]
[328688429,1717707049113,-153.0,0.00024877,2]
[328688430,1717707049124,-500.0,0.0002493,2]
[328688431,1717707049134,-500.0,0.00024931,2]
[328688432,1717707049144,-500.0,0.00024931,2]
[328688433,1717707049155,-500.0,0.00024931,2]
[328688434,1717707049164,-500.0,0.00024931,2]
[328688435,1717707049175,-500.0,0.00024931,2]
[328688436,1717707049185,-500.0,0.00024931,2]
[328688437,1717707049195,-415.37443357,0.00024931,2]
[328688438,1717707049205,-502.07950303,0.00024931,2]
[328688439,1717707049214,-500.0,0.00024931,2]
[328688440,1717707049223,-500.0,0.00024931,2]
[328688441,1717707049233,-500.0,0.00024931,2]
[328688442,1717707049242,-500.0,0.00024931,2]
[328688443,1717707049252,-500.0,0.00024931,2]
[328688444,1717707049261,-500.0,0.00024931,2]
[328688445,1717707049270,-500.0,0.00024931,2]
[328688446,1717707049280,-579.8720736,0.00024931,2]
[328688447,1717707049289,-363.8231379,0.00024931,2]
[328688448,1717707049299,-500.0,0.00024931,2]
[328688449,1717707049308,-500.0,0.00024931,2]
[328688450,1717707049318,-500.0,0.00024931,2]
[328688451,1717707049327,-500.0,0.00024931,2]
[328688452,1717707049337,-500.0,0.00024931,2]
[328688453,1717707049346,-500.0,0.00024931,2]
[328688454,1717707049356,-500.0,0.00024931,2]
[328688455,1717707049365,-500.0,0.00024931,2]
[328688456,1717707049375,-500.0,0.00024931,2]
[328688457,1717707049385,-500.0,0.00024931,2]
[328688458,1717707049394,-500.0,0.00024931,2]
[328688459,1717707049404,-500.0,0.00024931,2]
[328688460,1717707049414,-402.32,0.00024931,2]
[328688461,1717707049424,-500.0,0.00024931,2]
[328688462,1717707049434,-500.0,0.00024931,2]
[328688463,1717707049443,-500.0,0.00024931,2]
[328688464,1717707049453,-500.0,0.00024931,2]
[328688465,1717707049463,-500.0,0.00024931,2]
[328688466,1717707049472,-563.9,0.00024931,2]
[328688467,1717707049482,-500.0,0.00024931,2]
[328688468,1717707049492,-500.0,0.00024931,2]
[328688469,1717707049502,-500.0,0.00024931,2]
[328688470,1717707049512,-500.0,0.00024931,2]
[328688471,1717707049523,-691.76,0.00024931,2]
[328688472,1717707049532,-500.0,0.00024931,2]
[328688473,1717707049541,-635.84,0.00024931,2]
[328688474,1717707049552,-500.0,0.00024931,2]
[328688475,1717707049562,-500.0,0.00024931,2]
[328688476,1717707049572,-1926.82,0.00024931,2]
[328688477,1717707049582,-500.0,0.00024931,2]
[328688478,1717707049592,-500.0,0.00024931,2]
[328688479,1717707049602,-584.31,0.00024931,2]
[328688480,1717707049611,-500.0,0.00024931,2]
[328688481,1717707049620,-870.7,0.00024931,2]
[328688482,1717707049630,-500.0,0.00024931,2]
[328688483,1717707049640,-500.0,0.00024931,2]
[328688484,1717707049649,-500.0,0.00024931,2]
[328688485,1717707049659,-500.0,0.00024931,2]
[328688486,1717707049668,-500.0,0.00024931,2]
[328688487,1717707049678,-708.49,0.00024931,2]
[328688488,1717707049687,-500.0,0.00024931,2]
[328688489,1717707049697,-764.65,0.00024931,2]
[328688490,1717707049706,-500.0,0.00024931,2]
[328688491,1717707049715,-500.0,0.00024931,2]
[328688492,1717707049725,-1094.92,0.00024931,2]
[328688493,1717707049734,-500.0,0.00024931,2]
[328688494,1717707049743,-500.0,0.00024931,2]
[328688495,1717707049753,-500.0,0.00024931,2]
[328688496,1717707049763,-500.0,0.00024931,2]
[328688497,1717707049773,-641.96,0.00024931,2]
[328688498,1717707049782,-500.0,0.00024931,2]
[328688499,1717707049792,-508.33945223,0.00024931,2]
[328688500,1717707049802,-2142.83,0.00024931,2]
[328688501,1717707049812,-500.0,0.00024931,2]
[328688502,1717707049822,-636.61,0.00024931,2]
[328688503,1717707049831,-1084.85,0.00024931,2]
[328688504,1717707049840,-500.0,0.00024931,2]
[328688505,1717707049850,-2659.99,0.00024931,2]
[328688506,1717707049860,-211.12,0.00024931,2]
[328688507,1717707049870,-500.0,0.00024931,2]
[328688508,1717707049879,-598.37,0.00024931,2]
[328688509,1717707049889,-601.64,0.00024931,2]
[328688510,1717707049899,-500.0,0.00024931,2]
[328688511,1717707049908,-500.0,0.00024931,2]
[328688512,1717707049917,-2706.73,0.00024931,2]
[328688513,1717707049927,-500.0,0.00024931,2]
[328688514,1717707049936,-500.0,0.00024931,2]
[328688515,1717707049946,-500.0,0.00024931,2]
[328688516,1717707049956,-500.0,0.00024931,2]
[328688517,1717707049965,-500.0,0.00024931,2]
[328688518,1717707049975,-500.0,0.00024931,2]
[328688519,1717707049984,-2631.9,0.00024931,2]
[328688520,1717707049993,-531.71951726,0.00024931,2]
[328688521,1717707050003,-500.0,0.00024931,2]
[328688522,1717707050012,-500.0,0.00024931,2]
[328688523,1717707050025,-584.0,0.00024931,2]
[328688524,1717707050034,-1075.6,0.00024931,2]
[328688525,1717707050043,-500.0,0.00024931,2]
[328688526,1717707050053,-3211.23,0.00024931,2]
[328688527,1717707050063,-500.0,0.00024931,2]
[328688528,1717707050074,-500.0,0.00024931,2]
[328688529,1717707050083,-500.0,0.00024931,2]
[328688530,1717707050093,-500.0,0.00024931,2]
[328688531,1717707050109,-500.0,0.00024931,2]
[328688532,1717707050119,-500.0,0.00024931,2]
[328688533,1717707050128,-500.0,0.00024931,2]
[328688534,1717707050138,-500.0,0.00024931,2]
[328688535,1717707050148,-500.0,0.00024931,2]
[328688536,1717707050157,-500.0,0.00024931,2]
[328688537,1717707050166,-500.0,0.00024931,2]
[328688538,1717707050293,-500.0,0.00024931,2]
[328688539,1717707050302,-500.0,0.00024931,2]
[328688540,1717707050312,-500.0,0.00024931,2]
[328688541,1717707050321,-500.0,0.00024931,2]
[328688542,1717707050331,-500.0,0.00024931,2]
[328688543,1717707050340,-500.0,0.00024931,2]
[328688544,1717707050350,-500.0,0.00024931,2]
[328688545,1717707050360,-500.0,0.00024931,2]
[328688546,1717707050369,-500.0,0.00024931,2]
[328688547,1717707050379,-500.0,0.00024931,2]
[328688548,1717707050389,-205.1548009,0.00024932,2]
[328688549,1717707050398,-310.185845,0.00024932,2]
[328688550,1717707050408,-584.131166,0.00024932,2]
[328688551,1717707050417,-205.1548009,0.00024932,2]
[328688552,1717707050427,-371.01503927,0.00024998,2]
[328688553,1717707050437,-190.40082049,0.00024998,2]
[328688554,1717707050447,-275.45969432,0.00024998,2]
[328688555,1717707050457,-760.02032253,0.00024999,2]
[328688556,1717707050467,-928.00674991,0.00025,7]
[328688557,1717707050477,-240824.27165558,0.00025,2]
[328688558,1717707050529,-14280.05377711,0.00025,2]
[328688559,1717707050538,-7368.21437867,0.00025,2]
[328688560,1717707050547,-151.0,0.00025,2]
[328688561,1717707050558,-151.0,0.00025,2]
[328688562,1717707050567,-197.396899,0.00025,2]
[328688563,1717707050576,-151.0,0.00025,2]
[328688564,1717707050586,-151.0,0.00025,2]
[328688565,1717707050595,-151.0,0.00025,2]
[328688566,1717707050605,-151.0,0.00025,2]
[328688567,1717707050615,-151.0,0.00025,2]
[328688568,1717707050626,-151.0,0.00025,2]
[328688569,1717707050636,-156.061484,0.00025,2]
[328688570,1717707050647,-156.061484,0.00025,2]
[328688571,1717707050657,-151.0,0.00025,2]
[328688572,1717707050668,-263.894172,0.00025,2]
[328688573,1717707050680,-263.894172,0.00025,2]
[328688574,1717707050690,-151.0,0.00025,2]
[328688575,1717707050699,-151.0,0.00025,2]
[328688576,1717707050708,-151.0,0.00025,2]
[328688577,1717707050718,-151.0,0.00025,2]
[328688578,1717707050727,-151.0,0.00025,2]
[328688579,1717707050737,-151.0,0.00025,2]
[328688580,1717707050747,-151.0,0.00025,2]
[328688581,1717707050756,-151.0,0.00025,2]
[328688582,1717707050766,-151.0,0.00025,2]
[328688583,1717707050775,-411.533019,0.00025,2]
[328688584,1717707050785,-411.533019,0.00025,2]
[328688585,1717707050794,-151.0,0.00025,2]
[328688586,1717707050804,-1315.59063572,0.00025067,2]
[328688587,1717707050813,-500.0,0.00025204,2]
[328688588,1717707050823,-518.80000005,0.00025205,2]
[328688589,1717707050832,-500.0,0.00025205,2]
[328688590,1717707050841,-500.0,0.00025205,2]
[328688591,1717707050851,-500.0,0.00025205,2]
[328688592,1717707050861,-500.0,0.00025205,2]
[328688593,1717707050870,-500.0,0.00025205,2]
[328688594,1717707050879,-621.94,0.00025205,2]
[328688595,1717707050888,-500.0,0.00025205,2]
[328688596,1717707050897,-500.0,0.00025205,2]
[328688597,1717707050906,-500.0,0.00025205,2]
[328688598,1717707050916,-500.0,0.00025205,2]
[328688599,1717707050925,-500.0,0.00025205,2]
[328688600,1717707050935,-500.0,0.00025205,2]
[328688601,1717707050944,-500.0,0.00025205,2]
[328688602,1717707050955,-500.0,0.00025205,2]
[328688603,1717707050965,-500.0,0.00025205,2]
[328688604,1717707050974,-500.0,0.00025205,2]
[328688605,1717707050984,-500.0,0.00025205,2]
[328688606,1717707050993,-500.0,0.00025205,2]
[328688607,1717707051002,-500.0,0.00025205,2]
[328688608,1717707051011,-500.0,0.00025205,2]
[328688609,1717707051024,-563.9,0.00025205,2]
[328688610,1717707051034,-500.0,0.00025205,2]
[328688611,1717707051043,-107.58536651,0.00025205,2]
[328688612,1717707095208,552.15459788,9.999e-05,2]
[328688613,1717707097103,154.95351395,9.999e-05,2]
[328688614,1717707104222,156.8919944,9.999e-05,2]
[328688615,1717707110463,154.95351395,9.999e-05,2]
[328688616,1717707145553,154.95351395,9.999e-05,2]
[328688617,1717707430455,181.91947349,9.999e-05,2]
[328688618,1717707460891,923.66938935,0.00014,2]
[328688619,1717707477787,154.95351395,9.999e-05,2]
[328688620,1717707482477,317.32399469,9.999e-05,2]
[328688623,1717707671095,525.85647895,9.999e-05,2]
[328688624,1717707694097,154.95351395,9.999e-05,2]
[328688625,1717707795743,1281.31823399,9.999e-05,2]
[328688626,1717707861642,1139.2171253,0.0001,2]
[328688627,1717707871355,482.29,0.00010959,2]
[328688628,1717707876743,2120.15435773,9.999e-05,2]
[328688629,1717708011150,-1982.61645022,0.00014594,2]
[328688630,1717708011170,-404.74728404,0.00014594,2]
[328688631,1717708036932,23259.7207478,0.00013699,2]
[328688632,1717708094828,426.56540344,9.999e-05,2]
[328688633,1717708163129,-154.95351395,0.00014495,2]
[328688634,1717708163150,-185.27974199,0.00014495,2]
[328688635,1717708163171,-2641.29398819,0.00014495,2]
[328688636,1717708163193,-317.32399469,0.00014496,2]
[328688637,1717708163215,-154.95351395,0.00014496,2]
[328688638,1717708163237,-926.96947987,0.00014497,2]
[328688639,1717708163258,-5941.88209331,0.00014498,2]
[328688640,1717708163278,-1902.88024106,0.00014583,2]
[328688641,1717708163298,-46615.11241243,0.00014583,2]
[328688642,1717708163319,-2112.56090718,0.00014584,2]
[328688643,1717708163340,-774.09027042,0.00014585,2]
[328688644,1717708163363,-9584.29016261,0.00014585,2]
[328688645,1717708163383,-189.3948418,0.00014598,2]
[328688646,1717708163404,-2035.79578747,0.00014895,2]
[328688647,1717708163424,-507.0701437,0.00014896,2]
[328688648,1717708163446,-336.5029361,0.00015408,2]
[328688649,1717708163468,-5941.88209327,0.00015822,2]
[328688650,1717708163489,-11573.90587801,0.00016491,2]
[328688665,1717708232804,-1139.2171253,0.00015407,2]
[328688667,1717708232815,-915.20638764,0.00016491,2]
[328688671,1717708232879,-30417.69619568,0.00016491,2]
[328688690,1717708238682,-2135.78011446,0.00016491,2]
[328688691,1717708238694,-4025.26948016,0.00016491,2]
[328688692,1717708238706,-1507.30240698,0.00016491,2]
[328688693,1717708238742,-18484.31033938,0.00016491,2]
[328688694,1717708238752,-1709.8607377,0.00016498,2]
[328688695,1717708238761,-5941.88209327,0.00017147,2]
[328688696,1717708238770,-24900.0,0.00017502,2]
[328688697,1717708238780,-5941.88209327,0.00018471,2]
[328688698,1717708238791,-512.01562941,0.000189,2]
[328688699,1717708238801,-190.09701144,0.00019077,2]
[328688700,1717708238810,-200.0,0.00019178,2]
[328688701,1717708238819,-167.6314284,0.00019178,2]
[328688702,1717708238828,-170.226748,0.00019178,2]
[328688703,1717708238838,-391.3001725,0.00019794,2]
[328688704,1717708238848,-389.5261777,0.00019794,2]
[328688705,1717708238857,-461.86606845,0.00019794,2]
[328688706,1717708238866,-500.0,0.00019794,2]
[328688707,1717708238875,-500.0,0.00019794,2]
[328688708,1717708238885,-454.49041805,0.00019794,2]
[328688709,1717708238894,-500.0,0.00019794,2]
[328688710,1717708238903,-500.0,0.00019794,2]
[328688711,1717708238913,-480.81757964,0.00019794,2]
[328688712,1717708238923,-500.0,0.00019794,2]
[328688713,1717708238932,-266.64888355,0.00019794,2]
[328688714,1717708238942,-500.0,0.00019794,2]
[328688715,1717708238951,-500.0,0.00019794,2]
[328688716,1717708238961,-398.42873555,0.00019794,2]
[328688717,1717708238970,-5941.88209327,0.00019795,2]
[328688718,1717708238980,-14479.49141706,0.00019894,2]
[328688719,1717708238989,-3361.1267752,0.00019895,2]
[328688720,1717708238999,-9234.34205793,0.0002,2]
[328688721,1717708239009,-393.74475304,0.00021499,2]
[328688722,1717708239019,-3000.0,0.000215,2]
[328688723,1717708239029,-3000.0,0.0002151,2]
[328688724,1717708239041,-3000.0,0.0002152,2]
[328688725,1717708239051,-3000.0,0.0002153,2]
[328688726,1717708239061,-2804.15145439,0.0002154,2]
[328688733,1717708242601,-1170.28722075,0.00016398,2]
[328688734,1717708242611,-195.84854561,0.0002154,2]
[328688735,1717708242621,-3000.0,0.0002155,2]
[328688736,1717708242631,-2157.52550301,0.0002156,2]
[328688737,1717708242666,-842.47449699,0.0002156,2]
[328688738,1717708242676,-253.86060673,0.0002157,7]
[328688739,1717708242688,-3000.0,0.0002157,2]
[328688740,1717708242698,-3000.0,0.0002158,2]
[328688741,1717708242707,-3000.0,0.0002159,2]
[328688742,1717708242718,-3000.0,0.000216,2]
[328688743,1717708242728,-3000.0,0.0002161,2]
[328688744,1717708242737,-1982.61645022,0.00021619,2]
[328688745,1717708242747,-3000.0,0.0002162,2]
[328688746,1717708242757,-3000.0,0.0002163,2]
[328688747,1717708242766,-3000.0,0.0002164,2]
[328688748,1717708242775,-3000.0,0.0002165,2]
[328688749,1717708242784,-1280.94040698,0.0002166,2]
[328688750,1717708242797,-1719.05959302,0.0002166,2]
[328688751,1717708242807,-3000.0,0.0002167,2]
[328688752,1717708242816,-3000.0,0.0002168,2]
[328688753,1717708242825,-3000.0,0.0002169,2]
[328688754,1717708242835,-3000.0,0.000217,2]
[328688755,1717708242844,-3000.0,0.0002171,2]
[328688756,1717708242853,-3000.0,0.0002172,2]
[328688757,1717708242863,-3000.0,0.0002173,2]
[328688758,1717708242873,-3000.0,0.0002174,2]
[328688759,1717708242882,-3000.0,0.0002175,2]
[328688760,1717708242892,-3000.0,0.0002176,2]
[328688761,1717708242901,-3000.0,0.0002177,2]
[328688762,1717708242911,-3000.0,0.0002178,2]
[328688763,1717708242920,-3000.0,0.0002179,2]
[328688764,1717708242930,-3000.0,0.000218,2]
[328688765,1717708242939,-4620.91854318,0.0002181,2]
[328688766,1717708242950,-221.87508782,0.0002181,2]
[328688767,1717708242959,-16094.4261576,0.00021918,2]
[328688768,1717708242969,-166.666666,0.00021918,2]
[328688769,1717708242978,-3473.3631347,0.00021918,2]
[328688770,1717708242987,-624.26526648,0.000221,2]
[328688771,1717708242997,-166.666666,0.00022431,2]
[328688772,1717708243007,-166.666666,0.00022944,2]
[328688773,1717708243016,-206.81901429,0.00023,2]
[328688774,1717708243027,-8696.46400233,0.00023309,2]
[328688775,1717708243040,-887.82616028,0.00023309,2]
[328688776,1717708243050,-544.45908231,0.00023309,2]
[328688820,1717708244094,-774.09027042,0.00023308,2]
[328688821,1717708244106,-1358.42115875,0.00023309,2]
[328688822,1717708244116,-185.27974199,0.00023309,2]
[328688823,1717708244126,-1628.1313824,0.0002331,2]
[328688824,1717708244136,-166.666666,0.00023456,2]
[328688825,1717708244145,-512.01562941,0.000239,2]
[328688826,1717708244155,-166.666666,0.00023969,2]
[328688827,1717708244163,-200.0,0.0002411,2]
[328688828,1717708244174,-278.62154261,0.00024203,2]
[328688829,1717708244185,-166.666666,0.00024482,2]
[328688830,1717708244197,-166.666666,0.00024493,2]
[328688831,1717708244206,-1785.22359247,0.0002463,2]
[328688832,1717708244216,-155.2958605,0.00024655,2]
[328688833,1717708244225,-155.42647273,0.00024655,2]
[328688834,1717708244235,-1631.04850343,0.00024655,2]
[328688835,1717708244244,-316.99538677,0.00024655,2]
[328688836,1717708244254,-228.911002,0.00024656,2]
[328688837,1717708244263,-3849.67082831,0.00024656,2]
[328688838,1717708244272,-2639.14319601,0.00024656,2]
[328688839,1717708244283,-506.14602064,0.00024657,2]
[328688840,1717708244292,-500.0,0.00024657,2]
[328688841,1717708244302,-500.0,0.00024657,2]
[328688842,1717708244312,-500.0,0.00024657,2]